[Event "SUNWAY"]
[Date "2016.12.23"]
[Round "9.1"]
[White "Sasikiran, Krishnan"]
[Black "Edouard, Romain"]
[Result "1/2-1/2"]
[WhiteElo "2661"]
[BlackElo "2611"]
[ECO "B70"]
[WhiteFed "IND"]
[BlackFed "FRA"]
[FCGameId "-292179041"]
[TimeControl "5400+30"]

1. e4 {[%clk 1:30:56]} c5 {[%clk 1:20:58]} 2. Nf3 {[%clk 1:31:13]} d6  {[%clk 1:21:25]} 3. d4 {[%clk 1:31:29]} cxd4 {[%clk 1:21:51]} 4. Nxd4  {[%clk 1:31:46]} Nf6 {[%clk 1:22:18]} 5. Nc3 {[%clk 1:32:01]} g6  {[%clk 1:22:44]} 6. Bc4 {[%clk 1:32:07]} Bg7 {[%clk 1:22:40]} 7. h3  {[%clk 1:32:19]} O-O {[%clk 1:18:47]} 8. O-O {[%clk 1:32:09]} Nc6  {[%clk 1:16:24]} 9. Nf3 {[%clk 1:32:10]} Na5 {[%clk 0:52:49]} 10. Bd3  {[%clk 1:31:27]} Be6 {[%clk 0:44:32]} 11. Qe2 {[%clk 1:31:17]} Rc8  {[%clk 0:44:38]} 12. Rd1 {[%clk 1:31:35]} Qe8 {[%clk 0:40:00]} 13. Rb1  {[%clk 1:23:25]} a6 {[%clk 0:38:54]} 14. Bg5 {[%clk 1:17:43]} h6 15. Bxf6  {[%clk 1:06:46]} Bxf6 {[%clk 0:34:31]} 16. Nd5 {[%clk 1:06:29]} Bg7  {[%clk 0:34:50]} 17. Nf4 {[%clk 1:01:04]} Bc4 {[%clk 0:23:39]} 18. e5  {[%clk 0:51:00]} dxe5 {[%clk 0:23:50]} 19. Nxe5 {[%clk 0:50:05]} Bxd3  {[%clk 0:20:38]} 20. Rxd3 {[%clk 0:42:18]} Nc6 {[%clk 0:20:10]} 21. Nd7  {[%clk 0:33:46]} Nd4 {[%clk 0:20:36]} 22. Rxd4 {[%clk 0:32:53]} Bxd4  {[%clk 0:21:03]} 23. Nxf8 {[%clk 0:33:14]} Kxf8 {[%clk 0:21:14]} 24. c3  {[%clk 0:31:10]} Bg7 {[%clk 0:19:27]} 25. Rd1 {[%clk 0:29:27]} Rd8  {[%clk 0:18:20]} 26. g3 {[%clk 0:21:49]} Rxd1+ {[%clk 0:14:06]} 27. Qxd1  {[%clk 0:22:07]} Qc8 {[%clk 0:13:03]} 28. h4 Ke8 {[%clk 0:09:20]} 29. h5  {[%clk 0:17:36]} g5 {[%clk 0:08:53]} 30. Nd5 {[%clk 0:14:52]} e6  {[%clk 0:04:21]} 31. Ne3 {[%clk 0:14:30]} Qc6 {[%clk 0:04:06]} 32. Qd3  {[%clk 0:11:13]} Bf8 {[%clk 0:02:05]} 33. b4 {[%clk 0:06:00]} b5  {[%clk 0:01:23]} 34. a3 {[%clk 0:06:10]} Bg7 {[%clk 0:01:16]} 35. c4  {[%clk 0:05:57]} bxc4 {[%clk 0:01:44]} 36. Nxc4 {[%clk 0:06:19]} Ke7  {[%clk 0:01:41]} 37. a4 {[%clk 0:04:28]} Qxa4 {[%clk 0:00:34]} 38. Qd6+  {[%clk 0:03:52]} Ke8 {[%clk 0:00:53]} 39. Qb8+ {[%clk 0:02:54]} Ke7  {[%clk 0:01:21]} 40. Qd6+ {[%clk 0:30:44]} Ke8 {[%clk 0:31:48]} 41. Qb8+  {[%clk 0:30:06]} Ke7 {[%clk 0:32:14]} 42. Qd6+ 1/2-1/2

[Event "SUNWAY"]
[Date "2016.12.23"]
[Round "9.2"]
[White "Shyam, Sundar M."]
[Black "Kamsky, Gata"]
[Result "0-1"]
[WhiteElo "2532"]
[BlackElo "2661"]
[ECO "B32"]
[WhiteFed "IND"]
[BlackFed "USA"]
[FCGameId "1753502694"]
[TimeControl "5400+30"]

1. e4 {[%clk 1:30:55]} c5 {[%clk 1:30:08]} 2. Nf3 {[%clk 1:31:18]} Nc6  {[%clk 1:30:33]} 3. d4 {[%clk 1:31:35]} cxd4 {[%clk 1:30:57]} 4. Nxd4  {[%clk 1:32:02]} Qb6 {[%clk 1:31:21]} 5. Nb3 {[%clk 1:32:25]} Nf6  {[%clk 1:31:44]} 6. Nc3 {[%clk 1:32:13]} e6 {[%clk 1:32:08]} 7. Qe2  {[%clk 1:32:11]} Bb4 {[%clk 1:26:58]} 8. Bd2 {[%clk 1:32:21]} O-O  {[%clk 1:27:19]} 9. e5 {[%clk 1:23:52]} Bxc3 {[%clk 1:23:05]} 10. Bxc3  {[%clk 1:17:52]} Nd5 {[%clk 1:23:16]} 11. Bd2 {[%clk 1:18:15]} a5  {[%clk 1:23:04]} 12. c4 {[%clk 1:09:40]} Ndb4 {[%clk 1:18:34]} 13. Be3  {[%clk 1:06:28]} Qc7 14. a3 {[%clk 1:03:05]} Na6 {[%clk 1:19:19]} 15. f4  {[%clk 1:02:43]} d6 {[%clk 1:09:06]} 16. exd6 {[%clk 1:01:53]} Qxd6  {[%clk 1:09:27]} 17. Qd2 {[%clk 0:48:32]} Qc7 {[%clk 1:09:45]} 18. Be2  {[%clk 0:32:48]} e5 {[%clk 1:02:35]} 19. O-O {[%clk 0:32:59]} a4  {[%clk 1:02:10]} 20. Nc1 {[%clk 0:27:42]} Rd8 {[%clk 0:46:42]} 21. Qc3  {[%clk 0:27:57]} f6 {[%clk 0:37:27]} 22. c5 {[%clk 0:20:48]} Be6  {[%clk 0:36:15]} 23. fxe5 {[%clk 0:18:44]} Qxe5 {[%clk 0:35:38]} 24. Na2  {[%clk 0:17:33]} Nc7 {[%clk 0:18:16]} 25. Qxe5 {[%clk 0:14:13]} Nxe5  {[%clk 0:18:27]} 26. Rfc1 {[%clk 0:13:11]} Nd5 {[%clk 0:17:38]} 27. Bd2  {[%clk 0:12:57]} Ne7 {[%clk 0:14:00]} 28. Bc3 {[%clk 0:11:43]} Nd3  {[%clk 0:14:05]} 29. Bxd3 {[%clk 0:11:45]} Rxd3 {[%clk 0:14:30]} 30. Re1  {[%clk 0:11:30]} Kf7 {[%clk 0:14:50]} 31. Nb4 {[%clk 0:11:54]} Rd7  {[%clk 0:15:16]} 32. Rad1 {[%clk 0:10:11]} Rad8 {[%clk 0:15:33]} 33. Rxd7  {[%clk 0:10:23]} Rxd7 {[%clk 0:16:00]} 34. Re2 {[%clk 0:08:17]} Rc7  {[%clk 0:10:29]} 35. Bd4 {[%clk 0:08:43]} Nf5 {[%clk 0:10:50]} 36. Bf2  {[%clk 0:09:10]} Rd7 {[%clk 0:11:12]} 37. h3 {[%clk 0:06:07]} h5  {[%clk 0:11:06]} 38. Be1 {[%clk 0:04:18]} Rd1 {[%clk 0:09:52]} 39. Kf2  {[%clk 0:04:44]} h4 {[%clk 0:07:00]} 40. Rd2 {[%clk 0:32:04]} Rb1  {[%clk 0:36:46]} 41. c6 {[%clk 0:23:55]} bxc6 {[%clk 0:36:37]} 42. Nxc6  {[%clk 0:24:22]} Bb3 {[%clk 0:31:35]} 43. Rd7+ {[%clk 0:20:25]} Ke6  {[%clk 0:30:53]} 44. Rd3 {[%clk 0:20:53]} Bc4 {[%clk 0:29:02]} 45. Nd8+  {[%clk 0:21:04]} Ke7 {[%clk 0:27:41]} 46. Nc6+ {[%clk 0:21:32]} Kf7  {[%clk 0:27:24]} 47. Rd2 {[%clk 0:21:26]} Ng3 {[%clk 0:27:26]} 48. Rd4  {[%clk 0:21:21]} Rxb2+ {[%clk 0:26:23]} 49. Kf3 {[%clk 0:21:48]} Be2+  {[%clk 0:26:46]} 0-1

[Event "SUNWAY"]
[Date "2016.12.23"]
[Round "9.3"]
[White "Lopez Martinez, Josep Manuel"]
[Black "Ivanisevic, Ivan"]
[Result "1-0"]
[WhiteElo "2552"]
[BlackElo "2648"]
[ECO "B48"]
[WhiteFed "ESP"]
[BlackFed "SRB"]
[FCGameId "-630032454"]
[TimeControl "5400+30"]

1. e4 c5 2. Nf3 Nc6 3. d4 cxd4 4. Nxd4 Qc7 5. Nc3 e6 6. Be3 a6 7. Qf3 d6 8.  O-O-O Bd7 9. Qg3 Nf6 10. f3 Rc8 11. Nxc6 Bxc6 12. Bd3 b5 13. Kb1 Nd7 14. Rhe1  Nc5 15. Nd5 Qb7 16. Bd4 Nxd3 17. Rxd3 e5 18. Bxe5 dxe5 19. Qxe5+ Be7 20. Qxg7  Rf8 21. Qxh7 Bd8 22. Nf4 Bc7 23. e5 Ba5 24. Re2 Rd8 25. e6 Rxd3 26. cxd3 Bb4 27.  exf7+ Kd7 28. Qf5+ Kc7 29. Ne6+ Kb6 30. Nxf8 Bxf8 31. Re8 Ka5 32. Rxf8 Qe7 33.  Re8 Bxe8 34. fxe8=Q Qxe8 35. Qe4 Qh8 36. h4 Qh6 37. a3 Kb6 38. Qd4+ Ka5 39. Qd8+  Ka4 40. Qc7 b4 41. Qc4 a5 42. Ka2 1-0

[Event "SUNWAY"]
[Date "2016.12.23"]
[Round "9.4"]
[White "Van Foreest, Jorden"]
[Black "Romanov, Evgeny"]
[Result "0-1"]
[WhiteElo "2605"]
[BlackElo "2622"]
[ECO "C84"]
[WhiteFed "NED"]
[BlackFed "RUS"]
[FCGameId "-1633955867"]
[TimeControl "5400+30"]

1. e4 {[%clk 1:30:57]} e5 {[%clk 1:25:25]} 2. Nf3 {[%clk 1:31:18]} Nc6  {[%clk 1:25:51]} 3. Bb5 {[%clk 1:31:44]} a6 {[%clk 1:26:01]} 4. Ba4  {[%clk 1:32:08]} Nf6 {[%clk 1:26:26]} 5. O-O {[%clk 1:32:30]} Be7  {[%clk 1:26:52]} 6. d3 {[%clk 1:32:54]} d6 {[%clk 1:26:58]} 7. c3  {[%clk 1:33:14]} O-O {[%clk 1:27:22]} 8. Re1 {[%clk 1:33:39]} Re8  {[%clk 1:27:43]} 9. Nbd2 {[%clk 1:32:38]} b5 {[%clk 1:28:01]} 10. Bc2  {[%clk 1:32:30]} Bb7 {[%clk 1:28:26]} 11. d4 {[%clk 1:32:08]} Nd7  {[%clk 1:18:52]} 12. d5 {[%clk 1:28:40]} Na7 {[%clk 1:18:22]} 13. Nf1  {[%clk 1:27:46]} c6 {[%clk 1:16:50]} 14. Ne3 {[%clk 1:16:19]} Nc8  {[%clk 1:15:37]} 15. a4 {[%clk 1:12:38]} Ncb6 {[%clk 1:03:12]} 16. dxc6  {[%clk 1:00:12]} Bxc6 {[%clk 1:03:36]} 17. a5 Nc4 {[%clk 1:03:59]} 18. Nf5  {[%clk 0:58:20]} Nf8 {[%clk 0:54:13]} 19. b3 {[%clk 0:50:13]} Nxa5  {[%clk 0:54:36]} 20. Ba3 {[%clk 0:50:39]} Ng6 {[%clk 0:38:58]} 21. Nxe7+  {[%clk 0:42:16]} Rxe7 {[%clk 0:39:22]} 22. Qxd6 {[%clk 0:42:38]} Rd7  {[%clk 0:39:38]} 23. Qc5 {[%clk 0:43:02]} Qc7 {[%clk 0:39:01]} 24. Qe3  {[%clk 0:38:21]} Nb7 {[%clk 0:39:09]} 25. g3 {[%clk 0:37:35]} a5  {[%clk 0:36:57]} 26. h4 {[%clk 0:37:37]} Nf8 {[%clk 0:32:25]} 27. h5  {[%clk 0:33:59]} h6 {[%clk 0:32:28]} 28. Red1 {[%clk 0:25:58]} Rad8  {[%clk 0:29:27]} 29. Rxd7 {[%clk 0:24:59]} Rxd7 {[%clk 0:29:48]} 30. Bc5  {[%clk 0:21:09]} Nxc5 {[%clk 0:23:07]} 31. Qxc5 {[%clk 0:21:35]} f6  {[%clk 0:22:40]} 32. Qa3 {[%clk 0:17:04]} Qb7 {[%clk 0:21:06]} 33. Qxa5  {[%clk 0:16:45]} Bxe4 {[%clk 0:21:12]} 34. Bxe4 {[%clk 0:17:11]} Qxe4  {[%clk 0:21:38]} 35. Qa8 {[%clk 0:17:26]} Qg4 {[%clk 0:17:15]} 36. Kg2  {[%clk 0:17:30]} Qxh5 {[%clk 0:13:22]} 37. Qc6 {[%clk 0:12:49]} Qf7  {[%clk 0:12:54]} 38. Qxb5 {[%clk 0:11:15]} Rb7 {[%clk 0:12:43]} 39. Qc5  {[%clk 0:10:47]} Qxb3 {[%clk 0:11:42]} 40. Ra8 {[%clk 0:41:14]} Rf7  {[%clk 0:40:47]} 41. c4 {[%clk 0:40:14]} Qb7 {[%clk 0:40:25]} 42. Qa3  {[%clk 0:34:12]} g5 {[%clk 0:39:12]} 43. Kh2 {[%clk 0:34:23]} Kg7  {[%clk 0:35:54]} 44. Rd8 {[%clk 0:31:58]} Qc7 {[%clk 0:30:56]} 45. Qa8  {[%clk 0:29:30]} Qxc4 {[%clk 0:30:55]} 46. Nd2 {[%clk 0:29:57]} Qe2  {[%clk 0:24:45]} 47. Ne4 {[%clk 0:29:54]} Qf3 {[%clk 0:23:09]} 48. Nd6  {[%clk 0:21:45]} Qxf2+ {[%clk 0:21:09]} 49. Kh1 {[%clk 0:20:52]} Qf1+  {[%clk 0:18:22]} 50. Kh2 {[%clk 0:21:18]} Qf2+ {[%clk 0:18:48]} 51. Kh3  {[%clk 0:20:53]} h5 {[%clk 0:17:41]} 52. g4 {[%clk 0:20:07]} hxg4+  {[%clk 0:17:23]} 53. Kxg4 {[%clk 0:20:27]} f5+ {[%clk 0:17:39]} 54. Kh5  {[%clk 0:20:44]} Qh4# {[%clk 0:18:00]} 0-1

[Event "SUNWAY"]
[Date "2016.12.23"]
[Round "9.5"]
[White "Vocaturo, Daniele"]
[Black "Zubov, Alexander"]
[Result "1/2-1/2"]
[WhiteElo "2606"]
[BlackElo "2606"]
[ECO "C54"]
[WhiteFed "ITA"]
[BlackFed "UKR"]
[FCGameId "1244040243"]
[TimeControl "5400+30"]

1. e4 {[%clk 1:30:56]} e5 {[%clk 1:30:55]} 2. Nf3 {[%clk 1:30:56]} Nc6  {[%clk 1:31:20]} 3. Bc4 {[%clk 1:30:25]} Bc5 {[%clk 1:31:42]} 4. c3  {[%clk 1:29:46]} Nf6 {[%clk 1:32:04]} 5. d3 {[%clk 1:30:04]} a6 {[%clk 1:31:01]}  6. Bb3 {[%clk 1:29:24]} d6 {[%clk 1:30:17]} 7. h3 {[%clk 1:27:50]} Ba7  {[%clk 1:29:15]} 8. Nbd2 {[%clk 1:26:57]} Ne7 {[%clk 1:27:10]} 9. Nf1  {[%clk 1:24:29]} Ng6 {[%clk 1:27:24]} 10. Ng3 {[%clk 1:24:32]} h6 11. O-O  {[%clk 1:22:35]} O-O {[%clk 1:26:54]} 12. d4 {[%clk 1:20:16]} c5  {[%clk 1:25:19]} 13. Be3 {[%clk 1:13:52]} Qc7 {[%clk 1:24:09]} 14. Qd2  {[%clk 1:12:49]} Kh7 {[%clk 1:23:06]} 15. Bc2 {[%clk 1:09:41]} Be6  {[%clk 1:13:31]} 16. Rfd1 {[%clk 1:04:45]} Rfd8 {[%clk 1:07:32]} 17. d5  {[%clk 1:02:30]} Bd7 {[%clk 1:06:42]} 18. Nf5 {[%clk 1:02:08]} c4  {[%clk 1:02:03]} 19. Bxh6 {[%clk 0:42:13]} Bxf5 {[%clk 1:01:21]} 20. exf5  {[%clk 0:41:16]} gxh6 {[%clk 1:01:32]} 21. fxg6+ {[%clk 0:41:17]} fxg6  {[%clk 1:01:51]} 1/2-1/2

[Event "SUNWAY"]
[Date "2016.12.23"]
[Round "9.6"]
[White "Postny, Evgeny"]
[Black "Narciso Dublan, Marc"]
[Result "1/2-1/2"]
[WhiteElo "2620"]
[BlackElo "2508"]
[ECO "A90"]
[WhiteFed "ISR"]
[BlackFed "ESP"]
[FCGameId "1786423528"]
[TimeControl "5400+30"]

1. d4 {[%clk 1:28:35]} e6 {[%clk 1:30:45]} 2. c4 {[%clk 1:28:58]} f5  {[%clk 1:31:01]} 3. g3 {[%clk 1:28:56]} Nf6 {[%clk 1:31:12]} 4. Bg2  {[%clk 1:29:21]} d5 {[%clk 1:31:17]} 5. Nh3 {[%clk 1:28:24]} Bd6  {[%clk 1:31:27]} 6. O-O {[%clk 1:27:41]} O-O {[%clk 1:31:42]} 7. Qc2  {[%clk 1:23:57]} c6 {[%clk 1:31:40]} 8. Bf4 {[%clk 1:20:07]} Be7  {[%clk 1:31:45]} 9. Nd2 {[%clk 1:19:47]} Na6 {[%clk 1:31:52]} 10. a3  {[%clk 1:17:03]} h6 {[%clk 1:31:50]} 11. Be5 {[%clk 1:13:53]} g5  {[%clk 1:27:57]} 12. Bxf6 {[%clk 1:05:24]} Bxf6 {[%clk 1:27:52]} 13. e3  {[%clk 1:05:47]} Nc7 {[%clk 1:20:46]} 14. Kh1 {[%clk 0:57:09]} Ne8  {[%clk 1:17:26]} 15. f4 {[%clk 0:55:22]} Nd6 {[%clk 1:13:16]} 16. Nf2  {[%clk 0:55:34]} Bd7 {[%clk 1:03:05]} 17. Nd3 {[%clk 0:53:14]} Rc8  {[%clk 0:50:26]} 18. Rac1 {[%clk 0:51:49]} Ne4 {[%clk 0:49:27]} 19. b4  {[%clk 0:48:51]} Rc7 {[%clk 0:44:03]} 20. Nf3 {[%clk 0:34:51]} g4  {[%clk 0:27:22]} 21. Nfe5 {[%clk 0:34:21]} h5 {[%clk 0:27:30]} 22. Nc5  {[%clk 0:23:24]} Nxc5 {[%clk 0:21:59]} 23. bxc5 {[%clk 0:23:38]} h4  {[%clk 0:21:59]} 24. Rf2 {[%clk 0:17:21]} Bc8 {[%clk 0:19:41]} 25. Kg1  {[%clk 0:14:37]} Rh7 {[%clk 0:18:40]} 26. Bf1 {[%clk 0:11:02]} Kg7  {[%clk 0:16:16]} 27. Rg2 {[%clk 0:10:38]} Rfh8 {[%clk 0:13:04]} 28. Bd3  {[%clk 0:10:06]} hxg3 {[%clk 0:12:42]} 29. hxg3 {[%clk 0:10:32]} Bxe5  {[%clk 0:04:52]} 30. fxe5 {[%clk 0:10:38]} Rh1+ {[%clk 0:04:37]} 31. Kf2  {[%clk 0:11:03]} R8h3 {[%clk 0:03:29]} 32. Rxh1 {[%clk 0:09:16]} Rxh1  {[%clk 0:03:57]} 33. Qd2 {[%clk 0:06:28]} b6 {[%clk 0:03:24]} 34. cxb6  {[%clk 0:06:09]} axb6 {[%clk 0:03:46]} 35. Rg1 {[%clk 0:03:15]} Rh2+  {[%clk 0:03:57]} 36. Rg2 {[%clk 0:03:43]} Rxg2+ {[%clk 0:03:08]} 37. Kxg2  {[%clk 0:04:11]} c5 {[%clk 0:03:23]} 38. Kg1 {[%clk 0:03:32]} Bb7  {[%clk 0:02:58]} 39. Bf1 {[%clk 0:03:26]} dxc4 {[%clk 0:01:08]} 40. Bxc4  {[%clk 0:33:50]} Qd7 {[%clk 0:30:37]} 41. Kf2 {[%clk 0:20:50]} Kg6  {[%clk 0:25:10]} 42. Ke1 {[%clk 0:19:46]} Qc6 {[%clk 0:17:04]} 43. dxc5  {[%clk 0:14:03]} Qxc5 {[%clk 0:12:35]} 44. Qd4 {[%clk 0:13:53]} Qxa3  {[%clk 0:09:15]} 45. Kf2 {[%clk 0:14:13]} Qc1 {[%clk 0:04:02]} 46. Bxe6  {[%clk 0:04:28]} Qc2+ {[%clk 0:03:22]} 47. Ke1 {[%clk 0:04:53]} Qc1+  {[%clk 0:01:15]} 48. Kf2 {[%clk 0:05:21]} Qc2+ {[%clk 0:01:36]} 49. Ke1  {[%clk 0:05:45]} Qc1+ {[%clk 0:00:34]} 50. Kf2 {[%clk 0:06:10]} Qc2+  {[%clk 0:00:37]} 1/2-1/2

[Event "SUNWAY"]
[Date "2016.12.23"]
[Round "9.7"]
[White "Granda Zuniga, Julio E"]
[Black "Golubov, Saveliy"]
[Result "1-0"]
[WhiteElo "2646"]
[BlackElo "2490"]
[ECO "A52"]
[WhiteFed "PER"]
[BlackFed "RUS"]
[FCGameId "-461063776"]
[TimeControl "5400+30"]

1. d4 {[%clk 1:30:56]} Nf6 {[%clk 1:30:53]} 2. c4 {[%clk 1:31:21]} e5  {[%clk 1:30:54]} 3. dxe5 {[%clk 1:31:37]} Ng4 4. Bf4 {[%clk 1:27:12]} Nc6  {[%clk 1:31:15]} 5. Nc3 Ngxe5 {[%clk 1:25:46]} 6. e3 {[%clk 1:27:23]} Bb4 7. Rc1  {[%clk 1:10:31]} a5 {[%clk 1:14:18]} 8. a3 {[%clk 0:58:42]} Bxc3+  {[%clk 1:12:39]} 9. Rxc3 {[%clk 0:59:10]} a4 10. c5 {[%clk 0:51:34]} Qe7  {[%clk 1:10:35]} 11. Nf3 d6 {[%clk 0:57:29]} 12. cxd6 {[%clk 0:50:34]} cxd6  {[%clk 0:57:53]} 13. Be2 {[%clk 0:28:09]} O-O {[%clk 0:54:48]} 14. O-O  {[%clk 0:25:35]} Be6 15. Nd4 {[%clk 0:25:54]} Nxd4 {[%clk 0:48:48]} 16. Qxd4  {[%clk 0:24:02]} Rfd8 {[%clk 0:44:04]} 17. Bb5 Nc6 18. Bxc6 {[%clk 0:23:41]}  bxc6 {[%clk 0:32:11]} 19. Rxc6 {[%clk 0:24:07]} Bb3 20. Rfc1 {[%clk 0:18:58]} d5  {[%clk 0:32:42]} 21. R1c5 {[%clk 0:16:31]} Qe4 {[%clk 0:24:59]} 22. Be5 f6 23.  Qxe4 {[%clk 0:12:44]} dxe4 {[%clk 0:25:22]} 24. Bd4 {[%clk 0:13:12]} Bd5 25. Rc7  {[%clk 0:11:08]} Be6 {[%clk 0:25:53]} 26. Re7 {[%clk 0:11:15]} Rac8 27. Rc3 Rxc3  {[%clk 0:20:06]} 28. bxc3 {[%clk 0:11:01]} Bd5 {[%clk 0:12:46]} 29. g4  {[%clk 0:02:24]} h6 30. h3 {[%clk 0:01:57]} Rb8 {[%clk 0:11:25]} 31. Ra7 Rb1+  {[%clk 0:09:10]} 32. Kh2 {[%clk 0:02:26]} Bb3 {[%clk 0:09:23]} 33. Kg3  {[%clk 0:02:55]} Rg1+ {[%clk 0:04:55]} 34. Kf4 Rg2 {[%clk 0:04:12]} 35. Kf5  {[%clk 0:02:45]} Kh7 36. Kxe4 {[%clk 0:01:22]} Rxf2 {[%clk 0:04:36]} 37. Kd3  {[%clk 0:01:29]} Kg6 {[%clk 0:02:21]} 38. h4 {[%clk 0:01:40]} h5 39. gxh5+  {[%clk 0:32:07]} Kxh5 {[%clk 0:00:56]} 40. Rxg7 {[%clk 0:30:23]} Kxh4  {[%clk 0:26:27]} 41. c4 {[%clk 0:25:55]} f5 {[%clk 0:24:01]} 42. c5  {[%clk 0:11:07]} Bd5 43. Ra7 {[%clk 0:03:48]} Bc6 {[%clk 0:17:42]} 44. Rc7  {[%clk 0:02:46]} Be4+ {[%clk 0:14:53]} 45. Kc4 {[%clk 0:02:53]} f4  {[%clk 0:12:24]} 46. Re7 {[%clk 0:02:43]} Bc6 {[%clk 0:07:57]} 47. Re6  {[%clk 0:02:03]} Bb7 48. c6 {[%clk 0:01:48]} Ba6+ {[%clk 0:08:06]} 49. Kb4  {[%clk 0:01:54]} f3 {[%clk 0:06:15]} 50. c7 {[%clk 0:01:56]} Bb7 51. Rb6 Rc2  {[%clk 0:04:14]} 52. Rxb7 {[%clk 0:02:15]} f2 53. c8=Q {[%clk 0:02:38]} Rxc8  {[%clk 0:04:57]} 54. Rf7 1-0

[Event "SUNWAY"]
[Date "2016.12.23"]
[Round "9.8"]
[White "Krysa, Leandro"]
[Black "Vorobiov, Evgeny E."]
[Result "0-1"]
[WhiteElo "2491"]
[BlackElo "2583"]
[ECO "E38"]
[WhiteFed "ARG"]
[BlackFed "RUS"]
[FCGameId "-1359567378"]
[TimeControl "5400+30"]

1. d4 {[%clk 1:30:55]} Nf6 {[%clk 1:30:55]} 2. c4 {[%clk 1:31:14]} e6  {[%clk 1:31:15]} 3. Nc3 {[%clk 1:31:30]} Bb4 {[%clk 1:31:40]} 4. Qc2  {[%clk 1:31:51]} c5 {[%clk 1:32:04]} 5. dxc5 {[%clk 1:32:11]} Qc7  {[%clk 1:32:29]} 6. a3 {[%clk 1:31:26]} Bxc5 {[%clk 1:32:44]} 7. b4  {[%clk 1:31:18]} Be7 {[%clk 1:32:46]} 8. Nb5 {[%clk 1:31:24]} Qc6  {[%clk 1:31:11]} 9. Nf3 {[%clk 1:31:29]} d6 {[%clk 1:29:09]} 10. g4  {[%clk 1:31:38]} h6 {[%clk 1:17:58]} 11. Rg1 {[%clk 1:30:00]} e5  {[%clk 1:09:23]} 12. g5 {[%clk 1:24:30]} hxg5 {[%clk 1:08:52]} 13. Nxg5  {[%clk 1:24:19]} a6 {[%clk 0:55:09]} 14. Nxf7 {[%clk 1:13:44]} Kxf7  {[%clk 0:50:05]} 15. Qg6+ {[%clk 1:08:11]} Ke6 {[%clk 0:50:21]} 16. h4  {[%clk 0:24:28]} Kd7 {[%clk 0:35:21]} 17. Bh3+ {[%clk 0:06:44]} Kd8  {[%clk 0:35:29]} 18. Qxg7 {[%clk 0:01:35]} Rh7 {[%clk 0:34:15]} 0-1

[Event "SUNWAY"]
[Date "2016.12.23"]
[Round "9.9"]
[White "Peralta, Fernando"]
[Black "Anurag, Mhamal"]
[Result "1/2-1/2"]
[WhiteElo "2574"]
[BlackElo "2423"]
[ECO "E29"]
[WhiteFed "ARG"]
[BlackFed "IND"]
[FCGameId "1340486131"]
[TimeControl "5400+30"]

1. d4 Nf6 2. c4 e6 3. Nc3 Bb4 4. e3 c5 5. Bd3 Nc6 6. a3 Bxc3+ 7. bxc3 O-O 8. Rb1  b6 9. e4 d5 10. cxd5 exd5 11. e5 Ne4 12. Ne2 Bg4 13. Bb2 Qg5 14. h4 Qh5 15. Qc2  cxd4 16. Bxe4 dxe4 17. cxd4 Rac8 18. Ng3 Nxe5 19. Qxe4 Nf3+ 20. gxf3 Qb5 21.  fxg4 Rfe8 22. Qxe8+ Rxe8+ 23. Kd2 Qa5+ 24. Bc3 Qxa3 25. Rhe1 Rxe1 26. Rxe1 Qa2+  27. Kd3 h6 28. Ne4 b5 29. Nd2 a5 30. Ra1 Qe6 31. Rxa5 1/2-1/2

[Event "SUNWAY"]
[Date "2016.12.23"]
[Round "9.10"]
[White "Romanishin, Oleg M"]
[Black "Epishin, Vladimir"]
[Result "1/2-1/2"]
[WhiteElo "2463"]
[BlackElo "2571"]
[ECO "A06"]
[WhiteFed "UKR"]
[BlackFed "RUS"]
[FCGameId "1871692546"]
[TimeControl "5400+30"]

1. Nf3 {[%clk 1:30:56]} d5 {[%clk 1:29:56]} 2. g3 {[%clk 1:29:45]} Nd7  {[%clk 1:25:04]} 3. d4 {[%clk 1:25:59]} c6 {[%clk 1:19:03]} 4. Bg2  {[%clk 1:25:55]} Ngf6 {[%clk 1:19:14]} 5. O-O {[%clk 1:25:18]} g6  {[%clk 1:19:05]} 6. Bf4 {[%clk 1:23:51]} Bg7 {[%clk 1:19:18]} 7. Qc1  {[%clk 1:23:58]} O-O {[%clk 1:15:48]} 8. c4 dxc4 9. Qxc4 {[%clk 1:14:41]} Nd5  {[%clk 1:12:59]} 10. Bg5 {[%clk 1:05:58]} h6 {[%clk 1:07:15]} 11. Bd2  {[%clk 1:05:42]} N7f6 {[%clk 1:06:20]} 12. Qc1 {[%clk 1:02:07]} Kh7  {[%clk 1:05:07]} 13. Nc3 {[%clk 1:01:19]} Be6 {[%clk 1:03:43]} 14. Re1  {[%clk 0:57:03]} Nxc3 {[%clk 0:55:12]} 15. bxc3 {[%clk 0:55:38]} Bd5  {[%clk 0:55:02]} 16. Qc2 {[%clk 0:52:36]} Ne4 {[%clk 0:52:39]} 17. Bf4  {[%clk 0:51:38]} f5 {[%clk 0:47:15]} 18. Be5 {[%clk 0:48:30]} Nf6  {[%clk 0:45:22]} 19. c4 {[%clk 0:40:37]} Be4 {[%clk 0:45:26]} 20. Qb3  {[%clk 0:41:00]} Qd7 {[%clk 0:44:39]} 21. a4 {[%clk 0:35:49]} e6  {[%clk 0:42:02]} 22. Red1 {[%clk 0:31:32]} Rad8 {[%clk 0:39:39]} 23. Bxf6  {[%clk 0:21:21]} Bxf6 {[%clk 0:38:14]} 24. Ne5 {[%clk 0:21:47]} Qg7  {[%clk 0:38:11]} 25. Bxe4 {[%clk 0:07:59]} fxe4 {[%clk 0:37:57]} 26. Rab1  {[%clk 0:08:19]} c5 {[%clk 0:31:48]} 27. e3 {[%clk 0:06:20]} h5 {[%clk 0:23:21]}  28. Qc2 {[%clk 0:05:21]} cxd4 {[%clk 0:19:21]} 29. exd4 {[%clk 0:05:45]} Bxe5  {[%clk 0:19:45]} 30. dxe5 {[%clk 0:06:05]} Rxd1+ {[%clk 0:19:26]} 31. Qxd1  {[%clk 0:05:05]} b6 {[%clk 0:18:52]} 32. Qd4 {[%clk 0:04:58]} Rf5  {[%clk 0:18:32]} 33. Qxe4 {[%clk 0:04:08]} Qxe5 {[%clk 0:18:03]} 34. Re1  {[%clk 0:03:08]} Qxe4 {[%clk 0:14:26]} 1/2-1/2

[Event "SUNWAY"]
[Date "2016.12.23"]
[Round "9.11"]
[White "Burmakin, Vladimir"]
[Black "Liang, Awonder"]
[Result "1/2-1/2"]
[WhiteElo "2535"]
[BlackElo "2495"]
[ECO "A48"]
[WhiteFed "RUS"]
[BlackFed "USA"]
[FCGameId "136710718"]
[TimeControl "5400+30"]

1. d4 {[%clk 1:30:57]} Nf6 {[%clk 1:29:32]} 2. Nf3 {[%clk 1:31:12]} g6  {[%clk 1:29:51]} 3. Bf4 {[%clk 1:31:31]} Bg7 {[%clk 1:30:10]} 4. e3  {[%clk 1:31:52]} O-O {[%clk 1:30:22]} 5. Be2 {[%clk 1:32:14]} d6  {[%clk 1:30:28]} 6. O-O {[%clk 1:32:32]} Nbd7 {[%clk 1:29:29]} 7. h3 c5  {[%clk 1:29:17]} 8. c3 {[%clk 1:33:12]} b6 {[%clk 1:29:36]} 9. a4  {[%clk 1:33:31]} a6 {[%clk 1:29:18]} 10. Qb3 {[%clk 1:33:19]} Bb7  {[%clk 1:28:41]} 11. Rd1 {[%clk 1:33:37]} cxd4 {[%clk 1:16:43]} 12. cxd4  {[%clk 1:29:49]} Bd5 {[%clk 1:14:22]} 13. Qa3 {[%clk 1:28:41]} b5 14. Nbd2  {[%clk 1:09:27]} bxa4 {[%clk 0:59:49]} 15. Qxa4 {[%clk 1:08:11]} Qb6  {[%clk 0:59:33]} 16. Bc4 {[%clk 0:44:40]} Ra7 {[%clk 0:40:09]} 17. Qa5  {[%clk 0:35:38]} Qb7 {[%clk 0:36:08]} 18. Bxa6 {[%clk 0:29:07]} Qxb2  {[%clk 0:30:19]} 19. Rdb1 {[%clk 0:22:28]} Qc2 {[%clk 0:30:13]} 20. Bd3  {[%clk 0:17:27]} Rxa5 {[%clk 0:28:23]} 21. Bxc2 {[%clk 0:17:55]} Rxa1  {[%clk 0:27:10]} 22. Rxa1 {[%clk 0:18:24]} Rc8 {[%clk 0:27:29]} 23. Bd3  {[%clk 0:18:31]} Rc3 {[%clk 0:23:37]} 24. Bb5 {[%clk 0:18:03]} Rc7  {[%clk 0:21:24]} 25. Bg5 {[%clk 0:16:27]} 1/2-1/2